Cogmind - Beta 17.1 @@@ ROGUE MODE // 2026.09.02 @ 23:31:42 Player: lavinia Result: Self-destructed Performance ------------- Evolutions (4) 2000 Regions Visited (5) 1000 Robots Destroyed (40) 200 Value Destroyed (1102) 1102 Prototype IDs (2) 40 Alien Tech Used (0) 0 Bonus (0) 0 TOTAL SCORE: 4342 Bonus ------- None Cogmind --------- Core Integrity 714/850 Matter 76/300 Energy 24/100 System Corruption 4% Temperature Cool (0) Movement Core (750) Ox14 Location -6/Factory Parts ------- > --- POWER (1) -------- (None) > --- PROPULSION (4) --- Nuclear Pulse Thruster > --- UTILITY (6) ------ High-capacity Storage Unit Signal Interpreter Advanced Terrain Scanner > --- WEAPON (4) ------- Remote Datajack > --- INVENTORY (20) --- Terrain Scanner Improved Terrain Scanner Seismic Detector Seismic Detector Seismic Detector Advanced Targeting Computer Grenade Launcher Grenade Launcher Grenade Launcher Grenade Launcher Remote Datajack CPS Tube (2) CPS Tube (2) Maul Peak State ------------ > --- POWER ------------ Light Fission Core > --- PROPULSION ------- Overtuned Treads Nuclear Pulse Thruster > --- UTILITY ---------- High-capacity Storage Unit Signal Interpreter Advanced Terrain Scanner Shield Generator Improved Shield Generator > --- WEAPON ----------- Shock Rifle Medium Laser Heavy Laser Plasma Cannon > --- INVENTORY -------- Terrain Scanner Improved Terrain Scanner Seismic Detector Seismic Detector Seismic Detector Advanced Targeting Computer Grenade Launcher Grenade Launcher Grenade Launcher Grenade Launcher Remote Datajack Remote Datajack CPS Tube CPS Tube Maul [Rating: 41] Favorites ----------- Power Light Fission Core Engine Light Ion Engine Power Core Light Fission Core Propulsion Overtuned Treads Treads Overtuned Treads Wheel Wheel Flight Unit Nuclear Pulse Thruster Utility High-capacity Storage Unit Device Tractor Beam Storage High-capacity Storage Unit Processor Signal Interpreter Protection Scrap Shield Weapon Grenade Launcher Energy Gun Medium Laser Energy Cannon Plasma Cannon Ballistic Gun Assault Rifle Launcher Grenade Launcher Special Weapon Remote Datajack Build | -11 -10 -10 -10 -8 -6 ------- Run | Yrd Mat Min Sub Scr Fac Slots Evolved 8 | . . . . . 8 Power . | . . . . . . Propulsion 2 | . . . . . 2 Utility 4 | . . . . . 4 Weapon 2 | . . . . . 2 Parts Attached 33 | 7 8 . . 2 16 Power 3 | 1 1 . . 1 . Engine 2 | 1 1 . . . . Core 1 | . . . . 1 . Reactor . | . . . . . . Propulsion 5 | 2 1 . . 1 1 Treads 1 | . . . . 1 . Leg . | . . . . . . Wheel 3 | 2 1 . . . . Hover . | . . . . . . Flight 1 | . . . . . 1 Utility 10 | 2 3 . . . 5 Device 7 | 2 2 . . . 3 Storage 1 | . 1 . . . . Processor 1 | . . . . . 1 Hackware . | . . . . . . Protection 1 | . . . . . 1 Artifact . | . . . . . . Weapon 15 | 2 3 . . . 10 Energy Gun 3 | . . . . . 3 Energy Cannon 1 | . . . . . 1 Ballistic Gun 3 | 2 1 . . . . Ballistic Cannon . | . . . . . . Launcher 5 | . 2 . . . 3 Special Weapon 3 | . . . . . 3 Impact Weapon . | . . . . . . Slashing Weapon . | . . . . . . Piercing Weapon . | . . . . . . Special Melee Weapon . | . . . . . . Unidentified Prototypes . | . . . . . . Parts Lost 16 | . 3 . 3 . 10 Power 2 | . 1 . . . 1 Propulsion 3 | . 1 . 1 . 1 Utility 3 | . . . . . 3 Weapon 8 | . 1 . 2 . 5 Highest Loss Streak 8 | . 2 . 2 . 8 To Critical Strikes . | . . . . . . Average Backups 16 | . 7 13 13 17 13 Power . | . . . . . . Propulsion . | . . . . . . Utility 7 | . 3 6 6 8 6 Weapon 7 | . 4 7 7 7 4 Tool/Special . | . . . . . . Unused Backups 7 | . . . . . 7 Power . | . . . . . . Propulsion . | . . . . . . Utility 3 | . . . . . 3 Weapon 3 | . . . . . 3 Tool/Special 1 | . . . . . 1 Average Slot Usage (%) 59 | . 94 71 57 55 71 Core 10 | . . . . 13 5 Treads 10 | . . . . 13 6 Wheel 1 | . 24 14 2 . . Device 14 | . 19 14 14 14 14 Storage 13 | . 8 14 14 14 6 Ballistic Gun 2 | . 20 14 12 . 3 Launcher 2 | . 7 14 13 . 12 Peak Build Rating 41 | 9 10 6 6 13 41 Average Rating 12 | 5 9 6 5 12 30 On Entrance 6 | . 9 6 6 3 13 Avg Prop Armor Cover (%) 19 | . . . . 21 2 Naked Turns . | . . . . . . Heaviest Build 81 | 11 49 45 45 48 81 Greatest Support 26 | 26 26 10 10 18 18 Greatest Overweight (x) 26 | . 4 4 14 15 26 Average Overweight (x) 8 | . 1 4 8 14 4 Largest Inventory Capacity 20 | 5 20 20 20 20 20 Average Capacity 19 | 5 13 20 20 20 20 Most Carried 20 | 1 14 13 16 20 19 Average Carried 16 | . 7 13 14 18 13 Final Capacity 20 | 5 20 20 20 20 20 Final Carried 20 | 1 13 13 15 20 14 Class Distribution -------------------- 92% | Mutant 7% | Bomber Dominant Class ---------------- Mutant | -10/Materials Mutant | -10/Mines Mutant | -10/Subcaves Mutant | -8/Scraptown Bomber | -6/Factory Resources | -11 -10 -10 -10 -8 -6 ----------- Run | Yrd Mat Min Sub Scr Fac Matter Collected 869 | 226 291 . 182 20 150 Remotely 202 | . . . 182 20 . Salvage Created 854 | 90 334 . 15 . 415 Parts 62 | 6 40 . 2 . 14 Haulers Intercepted . | . . . . . . Recyclers Shooed 1 | . 1 . . . . Parts Field Recycled . | . . . . . . Retrieved Matter . | . . . . . . Parts Self-Destructed 7 | . . . 7 . . Prevented . | . . . . . . Parts Restored . | . . . . . . Kills | -11 -10 -10 -10 -8 -6 ------- Run | Yrd Mat Min Sub Scr Fac Combat Hostiles Destroyed 29 | . 15 . 3 . 11 Guns 8 | . 5 . . . 3 AOE 20 | . 10 . 3 . 7 Classes Destroyed 10 | 2 6 . . . 2 Worker 1 | . 1 . . . . Builder 4 | . 4 . . . . Tunneler 1 | 1 . . . . . Recycler 1 | 1 . . . . . Operator 1 | . 1 . . . . Watcher 3 | . 3 . . . . Swarmer 11 | . 8 . 3 . . Grunt 15 | . 7 . . . 8 Hunter 1 | . . . . . 1 Programmer 2 | . . . . . 2 Best Kill Streak 8 | 2 8 . 3 . 3 Combat Bots Only 3 | . 3 . 3 . 3 Max Kills in Single Turn 3 | 1 3 . 2 . 2 Gunslinging . | . . . . . . Exploded 3 | . 3 . 2 . 2 Melee . | . . . . . . Uniques/NPCs Destroyed . | . . . . . . Combat | -11 -10 -10 -10 -8 -6 -------- Run | Yrd Mat Min Sub Scr Fac Hostile Shots Fired 187 | . 75 . 9 . 103 Missed 56 | . 24 . 1 . 31 Hits 131 | . 51 . 8 . 72 Projectile 131 | . 51 . 8 . 72 AOE 1 | . . . 1 . . Critical Strikes 5 | . . . . . 5 Damage Taken 1913 | . 609 . 156 . 1148 Core 332 | . 134 . 62 . 136 Absorbed by Shields 242 | . . . . . 242 Core Remaining (%) 60 | 100 . . . 21 . Volleys Fired 71 | 2 38 . 3 . 28 Largest 4 | 2 2 . 2 . 4 Hottest 249 | 40 50 . 50 . 249 Shots Fired 138 | 4 72 . 5 . 57 Gun 90 | 4 52 . 3 . 31 Cannon 5 | . . . . . 5 Launcher 41 | . 20 . 2 . 19 Special 2 | . . . . . 2 Kinetic 69 | 4 52 . 3 . 10 Thermal 23 | . . . . . 23 Explosive 41 | . 20 . 2 . 19 Electromagnetic 3 | . . . . . 3 Robot Hit Streak 13 | 2 13 . 1 . 6 Robot Miss Streak 4 | . 4 . 1 . 3 Penetration Max . | . . . . . . Secondary Targets . | . . . . . . Shots Hit Robots 69 | 2 33 . 1 . 33 Core Hits 80 | 2 42 . 3 . 33 Critical Kills . | . . . . . . Critical Parts Destroyed . | . . . . . . Critical Strikes 1 | . . . . . 1 Burn 1 | . . . . . 1 Melee Attacks . | . . . . . . Impact . | . . . . . . Slashing . | . . . . . . Piercing . | . . . . . . Sneak Attacks . | . . . . . . Combat Hostiles . | . . . . . . Follow-up Attacks . | . . . . . . Damage Inflicted 2948 | 28 1536 . 118 . 1266 Guns 663 | 28 355 . . . 280 Cannons 77 | . . . . . 77 Explosions 2187 | . 1160 . 118 . 909 Melee . | . . . . . . Ramming 21 | . 21 . . . . Kinetic 468 | 28 355 . . . 85 Thermal 235 | . . . . . 235 Explosive 2187 | . 1160 . 118 . 909 Electromagnetic 37 | . . . . . 37 Impact . | . . . . . . Slashing . | . . . . . . Piercing . | . . . . . . Highest Corruption 4 | . . . . . 4 Average Corruption 3 | . . . . . 3 Corruption Purged . | . . . . . . Corruption Blocked . | . . . . . . Effects 9 | . . . . . 9 Matter Fused 2 | . . . . . 2 Energy Discharges 1 | . . . . . 1 Parts Fused 1 | . . . . . 1 Data Loss (minor) 3 | . . . . . 3 Data Loss (major) 1 | . . . . . 1 Weapon Failures 1 | . . . . . 1 Overload Shots . | . . . . . . Overflow Damage 36 | . 36 . . . . Projectiles . | . . . . . . Explosions 36 | . 36 . . . . Melee . | . . . . . . Knockbacks . | . . . . . . Impact . | . . . . . . Kinetic . | . . . . . . Secondary . | . . . . . . Self-Inflicted Damage 119 | . 103 . . . 16 Shots 7 | . 5 . . . 2 Rammed 1 | . 1 . . . . Targets Rammed 1 | . 1 . . . . Kicked . | . . . . . . Crushed . | . . . . . . Highest Temperature 336 | . 38 . . . 336 Average Temperature 84 | . 10 . . . 114 Received Heat Transfer 615 | . 159 . 30 . 426 Siege Activations . | . . . . . . Martial Activations . | . . . . . . Shielding Activations . | . . . . . . Robots Disrupted . | . . . . . . Combat Hostiles . | . . . . . . Robots Corrupted . | . . . . . . Combat Hostiles . | . . . . . . Parts Fried . | . . . . . . Impact Corruptions . | . . . . . . Robots Melted 1 | . . . . . 1 Combat Hostiles 1 | . . . . . 1 Parts Melted 2 | . . . . . 2 Heat Transferred 631 | . . . . . 631 Parts Sabotaged . | . . . . . . Parts Stolen . | . . . . . . Parts Stripped . | . . . . . . Power Chain Reactions . | . . . . . . Alert | -11 -10 -10 -10 -8 -6 ------- Run | Yrd Mat Min Sub Scr Fac Maximum Alert Level 1 | . 1 . . . 1 Low Security (%) 84 | 100 76 100 . . 88 Level 1 15 | . 23 . . . 11 Level 2 . | . . . . . . Level 3 . | . . . . . . Level 4 . | . . . . . . Level 5 . | . . . . . . High Security . | . . . . . . Max Security . | . . . . . . Peak Influence 351 | 10 351 127 . . 228 Initial 127 | . . 127 . . . Average 95 | . 102 115 . . 98 Influence Increases 1069 | 10 570 . 70 . 419 Destroy 0b10 Robot/C 580 | . 300 . 60 . 220 Destroy 0b10 Robot/NC 55 | 10 45 . . . . Destroy Leader 136 | . 66 . 10 . 60 Successful Hack 33 | . 5 . . . 28 Disable Machine 60 | . 15 . . . 45 Destroy Structure 175 | . 109 . . . 66 Lose Combat Pursuer 30 | . 30 . . . . Influence Decreases 977 | 10 243 230 167 . 327 Entered New Map 251 | . . 200 51 . . Time Decay 596 | 10 213 30 116 . 227 Lost Part 130 | . 30 . . . 100 Squads Dispatched 7 | . 4 . . . 3 Investigation 4 | . 2 . . . 2 Extermination 1 | . . . . . 1 Reinforcement 2 | . 2 . . . . Assault . | . . . . . . Garrison . | . . . . . . Intercept . | . . . . . . Searches Triggered . | . . . . . . Construction Impeded . | . . . . . . Haulers Reinforced . | . . . . . . Active Scanning Responses . | . . . . . . Cargo Convoy Interrupts . | . . . . . . Stealth | -11 -10 -10 -10 -8 -6 --------- Run | Yrd Mat Min Sub Scr Fac Distress Signals 5 | . 3 2 . . . Communications Jammed . | . . . . . . Distress Signals . | . . . . . . Times Spotted 50 | . 26 . 11 . 13 Peak Tracking Total 6 | . 4 . 6 . 3 Tactical Retreats 1 | . 1 . . . . Traps | -11 -10 -10 -10 -8 -6 ------- Run | Yrd Mat Min Sub Scr Fac Traps Triggered 1 | . 1 . . . . Indirectly . | . . . . . . Trap Hack Attempts . | . . . . . . Triggered . | . . . . . . Disarmed . | . . . . . . Reprogrammed . | . . . . . . Reused . | . . . . . . Traps Extracted . | . . . . . . Installed . | . . . . . . Triggered . | . . . . . . Machines | -11 -10 -10 -10 -8 -6 ---------- Run | Yrd Mat Min Sub Scr Fac Machines Disabled 5 | . 2 . . . 3 Max in Single Turn 2 | . 1 . . . 2 Machines Repaired . | . . . . . . Machines Dismantled . | . . . . . . Machines Sabotaged . | . . . . . . Overloaded Fab Kills . | . . . . . . Hacking | -11 -10 -10 -10 -8 -6 --------- Run | Yrd Mat Min Sub Scr Fac Machines Accessed 10 | . 4 . 1 3 2 Terminals 6 | . 4 . . . 2 Fabricators . | . . . . . . Repair Stations . | . . . . . . Recycling Units . | . . . . . . Scanalyzers . | . . . . . . Garrison Access . | . . . . . . Total Hacks 56 | . 17 . 5 27 7 Successful 40 | . 5 . 5 27 3 Failed 16 | . 12 . . . 4 Catastrophic 2 | . 1 . . . 1 Database Lockouts . | . . . . . . Manual . | . . . . . . Terminals 24 | . 17 . . . 7 Fabricators . | . . . . . . Repair Stations . | . . . . . . Recycling Units . | . . . . . . Scanalyzers . | . . . . . . Garrison Access . | . . . . . . Terminal Hacks 40 | . 5 . 5 27 3 Record 32 | . . . 5 27 . Prototype ID Bank 1 | . 1 . . . . Branch Access Points 1 | . 1 . . . . Terminal Index 1 | . . . . . 1 Locate Traps 1 | . . . . . 1 Recall Investigation 1 | . 1 . . . . Zone Layout 3 | . 2 . . . 1 Fabricator Hacks . | . . . . . . Repair Station Hacks . | . . . . . . Recycling Unit Hacks . | . . . . . . Scanalyzer . | . . . . . . Garrison Access Hacks . | . . . . . . Unauthorized Hacks . | . . . . . . Terminals . | . . . . . . Fabricators . | . . . . . . Repair Stations . | . . . . . . Recycling Units . | . . . . . . Scanalyzers . | . . . . . . Garrison Access . | . . . . . . Data Cores Recovered . | . . . . . . Used . | . . . . . . Hacking Detections 6 | . 4 . . . 2 Full Trace Events 6 | . 4 . . . 2 Feedback Events . | . . . . . . Feedback Blocked . | . . . . . . Robot Schematics Acquired . | . . . . . . Robots Built . | . . . . . . Authchips . | . . . . . . Time . | . . . . . . Total Robot Build Rating . | . . . . . . Part Schematics Acquired . | . . . . . . Parts Built . | . . . . . . Authchips . | . . . . . . Time . | . . . . . . Total Part Build Rating . | . . . . . . Part Studies Acquired . | . . . . . . Parts Repaired . | . . . . . . Time . | . . . . . . Parts Recycled . | . . . . . . Recycled Matter . | . . . . . . Retrieved Matter . | . . . . . . Retrieved Components . | . . . . . . Parts Scanalyzed . | . . . . . . Part Schematics Acquired . | . . . . . . Parts Damaged . | . . . . . . Bothacking | -11 -10 -10 -10 -8 -6 ------------ Run | Yrd Mat Min Sub Scr Fac Used RIF Installer . | . . . . . . Robots Hacked 1 | . . . . . 1 Non-combat . | . . . . . . Combat 1 | . . . . . 1 Robot Hacks Applied 1 | . . . . . 1 parse_system 1 | . . . . . 1 Relay Couplers Released . | . . . . . . Fabnet Peak Effective % . | . . . . . . Robots Rewired . | . . . . . . Allies Hacked . | . . . . . . Hacks Repelled . | . . . . . . Allies | -11 -10 -10 -10 -8 -6 -------- Run | Yrd Mat Min Sub Scr Fac Total Allies . | . . . . . . Largest Group . | . . . . . . Highest-Rated Group . | . . . . . . Highest-Rated Ally . | . . . . . . Total Orders . | . . . . . . Ally Attacks . | . . . . . . Total Damage . | . . . . . . Kills . | . . . . . . Allies Corrupted . | . . . . . . Allies Melted . | . . . . . . Intel | -11 -10 -10 -10 -8 -6 ------- Run | Yrd Mat Min Sub Scr Fac Active Infowar (turns) 1272 | 24 565 . . . 683 Terrain 1168 | 24 565 . . . 579 Seismic 375 | 22 249 . . . 104 Robot Analysis Total . | . . . . . . Derelict Logs Recovered 2 | . . 1 . 1 . Drone Launches . | . . . . . . Drone Recoveries . | . . . . . . Exploration | -11 -10 -10 -10 -8 -6 ------------- Run | Yrd Mat Min Sub Scr Fac Turns Passed 9627 | 85 604 65 680 7501 692 Spaces Moved 1903 | 74 439 47 154 979 210 Core 1019 | 1 . . 71 935 12 Treads 242 | . . . . 44 198 Legs . | . . . . . . Wheels 642 | 73 439 47 83 . . Hover . | . . . . . . Flight . | . . . . . . Fastest Speed 50 | 50 80 140 140 180 200 Average Speed 489 | 90 104 140 419 765 274 Slowest Speed 1350 | 100 140 140 750 800 1350 Overloaded Moves . | . . . . . . Propulsion Burnouts . | . . . . . . Robots Hopped . | . . . . . . Potential Cave-ins . | . . . . . . Cave-ins Triggered . | . . . . . . Exploration Rate (%) 27 | 3 75 14 11 58 4 Regions Visited 5 Branch Regions 3 Pre-discovered Areas 2 | . . 1 1 . . Known Exits Taken 1 | . 1 . . . . Unknown Exits Taken 4 | 1 . 1 1 1 . Scrap Searched 4 | . . . . 4 . Spaces Dug . | . . . . . . Terrain Destroyed 196 | . 108 . 9 . 79 Melee . | . . . . . . Projectile . | . . . . . . AOE 196 | . 108 . 9 . 79 Terrain Rammed . | . . . . . . Walls Destroyed . | . . . . . . Machines Disabled . | . . . . . . Actions | -11 -10 -10 -10 -8 -6 --------- Run | Yrd Mat Min Sub Scr Fac Total 2104 | 84 513 46 189 988 284 Wait 56 | . 9 . 30 1 16 Move 1898 | 73 438 46 153 978 210 Hop . | . . . . . . Pick Up 26 | 2 13 . 1 5 5 Fast Attach 16 | 6 5 . . 2 3 Attach 19 | 1 2 . 1 . 15 Detach 8 | . 1 . 1 . 6 Swap 1 | . 1 . . . . Drop 6 | . 5 . . . 1 Fire 71 | 2 38 . 3 . 28 Melee . | . . . . . . Ram 1 | . 1 . . . . Kick . | . . . . . . Crush . | . . . . . . Escape Stasis . | . . . . . . Rewire 2 | . . . . 2 . Trap . | . . . . . . Miscellaneous . | . . . . . . Route ------- -11/Scrapyard -10/Materials (discovered 4 exits: [*Mat x2] / *Min x2) -10/Mines -10/Subcaves (discovered 4 exits: *Mat x2 / Rec / *Scr) -8/Scraptown -6/Factory History --------- Turn | Location | Event 32 | -11/Scrapyard | Discovered new exit (range 12) 86 | -11/Scrapyard | Entered Materials 147 | -10/Materials | Identified exit to Mines 358 | -10/Materials | Build established: Mutant 429 | -10/Materials | Discovered new exit (range 3) 628 | -10/Materials | Core integrity fell below 50% 658 | -10/Materials | Discovered new exit (range 12) 690 | -10/Materials | Entered Mines 691 | -10/Mines | Assembled infested the area 702 | -10/Mines | Learned location of Mines (-8) 730 | -10/Mines | Discovered new exit (range 13) 755 | -10/Mines | Entered Subcaves 756 | -10/Subcaves | Approached by a straggling Scientist 878 | -10/Subcaves | Discovered new exit (range 11) 980 | -10/Subcaves | Visited Clippyterm 1002 | -10/Subcaves | Identified exit to Recycling 1002 | -10/Subcaves | Identified exit to Materials 1002 | -10/Subcaves | Learned location of Section 7 (-2) 1329 | -10/Subcaves | Scientist uncovered a shortcut to Scraptown 1379 | -10/Subcaves | Ambushed by swarm of Subdwellers 1435 | -10/Subcaves | Entered Scraptown 1463 | -8/Scraptown | Heard Great Nut preacher, LISTEN AND RECITE! 2537 | -8/Scraptown | Received an X-ray algorithm 3017 | -8/Scraptown | Scanned Subdweller tech in exchange for log data 3041 | -8/Scraptown | Learned Research security intel 3137 | -8/Scraptown | Discovered new exit (range 11) 5462 | -8/Scraptown | Visited UFD Registry 5670 | -8/Scraptown | Visited Cave Peace 5934 | -8/Scraptown | Visited Comm Corps 6422 | -8/Scraptown | Visited Cyclists 6670 | -8/Scraptown | Visited Spacefarers 7070 | -8/Scraptown | Visited Fellowship of the Rings 7342 | -8/Scraptown | Visited IN-MT5's Study 7608 | -8/Scraptown | Visited The Evicted 8936 | -8/Scraptown | Entered Factory 8936 | -6/Factory | Evolved 8 slots: Propulsion x2, Utility x4, Weapon x2 9241 | -6/Factory | Build established: Bomber 9628 | -6/Factory | Self-destructed Last Messages --------------- 09612_ G-50 Soldier overheating. 09612_ K-01 Serf collects debris. 09614_ Critical hit (Burn: +37). 09615_ G-50 Soldier heat spikes uncontrollably. 09615_ G-50 Soldier overheating. 09616_ G-50 Soldier heat damages Carbon-fiber Leg. 09616_ G-50 Soldier overheating. 09616_ K-01 Serf collects debris. 09616_ Imp. Shield Generator destroyed. 09617_ G-50 Soldier heat spikes uncontrollably. 09617_ G-50 Soldier overheating. 09619_ G-50 Soldier heat damages core (-11). 09619_ Broken Adv. Heat Sink melted. 09619_ Carbon-fiber Leg melted. 09621_ K-01 Serf collects debris. 09621_ Ovr. Treads destroyed. 09624_ System corrupted: Component data lost. 09625_ K-01 Serf collects debris. 09625_ Plasma Cannon destroyed. Map ----- +----------------------------------------------------+ | ### """ # | | ?## ! # ##########+##### | | ############ #?##??# """ #???? | | # # ##????# "T" # ?? | | # !!! / ####### " " #???? | | # !!! # # # #???? | | " !! *!#= # # """"#???? | | " # # ! """"#???? | | " # # """"# ??? | | " # # # """"# ??? | | " # # # #???? | | " # + ##########^^^^ | | " # # + ????????? | | " # # #####?#??#???? | | " # # # ###???????? | | # # # # ###??#????? | | # # # # ###???#????? | | # """T " # ###"### ##?????????? | | ############ #### ####??##?????? | | ??#?#?###??# #???#####?##???? ?? | | ??#?#??????# ##???#???#?????? ??? | | ???#??????## g ##??###????????????? | | ?#??????#??# #??????#?????#?????? | | ???#??###??# #?????#?????#?##???? | | ?#?????#?#?# #?##?#???????#?????? | | ?#??#?##?#?#@ ### ?? ? ?? ???????? | | ?????????### % T## ? ?? ??????????? | | ?????#?##?## ## ?? ???????????? | | ??##?#???#?# ### ???????"???????? | | ???#??##??## #?# ?"?????????????? | | ??#????????# #?# ???????????????? | | ?????#?????# #?# ???????????????? | | ############ * #?# ???????????????? | | ???????????#[k #??????????"???????? | | ???????????# #?? ?? ????????????? | | ???????????? #????? ???? ???????? | | ????????? ?? #???? ?????????????? | | ?? ????????? #??????????????????? | | ???????????? k??????????????????? | | ???????????? ???????????????????? | | ????????? ?? "?????????????????????? | | ???????????? ?????"?????????????????? | | ????????????????????????????????????? | | ????????????????????????????????????? | | ???????????????"????????????????????? | | ????????????????????????????????????? | | ????????????????????????????????????? | | ????????????????????????????????????? | | ????????????????????????????????????? | | ????????????????????????????????????? | +----------------------------------------------------+ Best States ------------- Heat Dissipation 37 Energy Generation 18 Energy Capacity 250 Matter Stores 300 Matter Capacity 300 Sight Range 16 Terrain Scan Range 20 Terrain Scan Density 10 Armor Coverage 800 Evasion (%) 44 Recoil Reduction 1 Item Schematics ----------------- None Robot Schematics ------------------ None Fabricated ------------ Nothing Repaired ---------- Nothing Studied --------- None Alien Tech Used ----------------- None Achievements -------------- Civilization 2243 I Have A Map? Made in Tau Ceti IV Nice Directions, Buddy Challenges ------------ None Game ------ Seed SalvagingCloakMinigun Manual? 0 Play Time 00:46:50 Cumulative 14.7 hours Start 2026.09.02 @ 22:45:15 End 2026.09.02 @ 23:31:42 Sessions 1 Manual Loads 0 Difficulty Rogue Special Mode None Game No. 28 Rogue 28 Adventurer 0 Explorer 0 Win Type - Total 0 Types 0/0/0/0/0/0/0/0/0/0 Lore% 12 Gallery% 10 Achievement% 10 Wizard Run 0 Options --------- Layout 1 ASCII 0 Keyboard 0 Movement Numpad Keybinds 0 Fullscreen 1 Font 24/Smallcaps Map View 50x35 Zoom Use 0% Tactical HUD 1 Map Filters NONE Filters NONE Steam 1 RUN: eb0570e1-287a-4060-9179-7c39dc8fcb3a